bitfinex/quotes_SOLUSD_20250617
["timestamp","ask_amount","ask_price","bid_price","bid_amount"]
[1750137821685,26.88,153.13,153.09,6.54038896]
[1750137821993,26.88,153.13,153.08,6.53238767]
[1750137822199,26.88,153.13,153.09,6.54038896]
[1750137822402,6.54038896,153.12,153.07,32.5328678]
[1750137822897,6.54038896,153.12,153.08,6.54038896]
[1750137823297,6.54038896,153.11,153.07,6.54038896]
[1750137823607,26.88,153.1,153.07,6.54038896]
[1750137824484,26.88,153.1,153.06,6.5332843]
[1750137824703,26.88,153.1,153.07,6.54038896]
[1750137825084,26.88,153.1,153.07,13.07298401]
[1750137825281,26.9,153.11,153.08,6.54038896]
[1750137825903,26.9,153.11,153.07,6.53259505]
[1750137826103,33.44038896,153.11,153.07,13.07298401]
[1750137826411,6.54038896,153.08,153.01,22.39527939]
[1750137826597,32.74,153.07,153.02,13.07548241]
[1750137826929,26.0,153.11,153.05,6.54038896]
[1750137827130,26.0,153.11,153.02,32.53509345]
[1750137827131,5.84,153.08,153.06,6.54038896]
[1750137827333,5.84,153.08,153.05,6.54038896]
[1750137827936,6.54038896,153.06,153.01,6.0568]
[1750137828133,6.54038896,153.05,153.01,6.54038896]
[1750137828317,26.92,153.04,153.01,6.54038896]
[1750137828907,26.92,153.04,152.99,27.5707]
[1750137828908,26.92,153.04,152.99,34.10703928]
[1750137829123,33.45432544,153.04,153.01,6.54038896]
[1750137829352,33.45432544,153.04,152.96,22.88378782]
[1750137829353,19.68465155,153.02,152.91,40.67179443]
[1750137829517,19.68465155,153.02,152.84,26.01225746]
[1750137829518,6.5534,152.98,152.85,6.54236179]
[1750137829721,6.5534,152.98,152.83,6.54283736]
[1750137829722,26.0,152.94,152.83,6.54283736]
[1750137829927,26.0,152.9,152.83,6.54283736]
[1750137830127,57.24,152.9,152.81,6.54369141]
[1750137830536,57.24,152.9,152.77,3.38935231]
[1750137830741,57.24,152.9,152.77,9.93493053]
[1750137830914,57.24,152.9,152.77,35.93493053]
[1750137831111,26.0,152.86,152.77,9.93493053]
[1750137831532,31.44,152.87,152.8,6.54038896]
[1750137831722,6.54038896,152.86,152.81,6.54038896]
[1750137832027,31.44,152.87,152.78,26.0]
[1750137832219,31.44,152.87,152.73,22.56550161]
[1750137832529,57.44,152.87,152.78,6.54038896]
[1750137832711,57.44,152.87,152.8,6.54038896]
[1750137832913,57.44,152.87,152.81,6.54038896]
[1750137833240,63.98172899,152.87,152.8,6.54038896]
[1750137833548,19.07613357,152.89,152.77,16.54543814]
[1750137833722,32.22076306,152.9,152.83,26.0]
[1750137833924,25.55402306,152.89,152.86,6.54038896]
[1750137834117,25.55402306,152.89,152.8,0.42648471]
[1750137834434,25.55402306,152.89,152.85,26.0]
[1750137834743,8.92,152.92,152.87,6.54038896]
[1750137834927,8.92,152.92,152.88,9.88590094]
[1750137835231,15.45945092,152.92,152.87,9.88590094]
[1750137835411,9.88590094,152.91,152.85,26.0]
[1750137835842,15.45945092,152.92,152.85,26.0]
[1750137836019,18.80590094,152.92,152.87,9.88590094]
[1750137836224,18.80590094,152.92,152.83,6.96939474]
[1750137836225,8.92,152.92,152.89,9.88590094]
[1750137836423,8.92,152.92,152.86,19.07613357]
[1750137836733,18.80590094,152.92,152.88,9.88590094]
[1750137837131,18.80590094,152.92,152.86,0.42648471]
[1750137837348,18.80590094,152.92,152.88,9.88590094]
[1750137837841,8.92,152.92,152.88,9.88590094]
[1750137838041,8.92,152.92,152.86,19.07613357]
[1750137838042,18.80590094,152.92,152.86,19.07613357]
[1750137838539,8.92,152.92,152.89,9.88590094]
[1750137838745,8.92,152.92,152.88,9.88590094]
[1750137839516,8.92,152.92,152.86,25.61802974]
[1750137839715,8.92,152.92,152.89,9.88590094]
[1750137840739,8.92,152.92,152.88,9.88590094]
[1750137841664,8.92,152.92,152.87,18.64964886]
[1750137841818,15.45938771,152.92,152.86,6.96839776]
[1750137842012,8.92,152.92,152.88,9.88590094]
[1750137843820,8.92,152.92,152.86,6.96839776]
[1750137843821,8.92,152.92,152.9,9.88590094]
[1750137844033,15.45939141,152.92,152.86,0.42648471]
[1750137844229,8.92,152.92,152.87,9.88590094]
[1750137844560,18.80590094,152.92,152.87,9.88590094]
[1750137844851,8.92,152.92,152.89,9.88590094]
[1750137845054,41.34,152.92,152.89,9.88590094]
[1750137845372,41.34,152.92,152.86,25.61793505]
[1750137845524,41.34,152.92,152.89,9.88590094]
[1750137845921,51.22590094,152.92,152.88,9.88590094]
[1750137847327,9.88590094,152.89,152.85,26.0]
[1750137847528,41.34,152.92,152.86,35.88590094]
[1750137847729,41.34,152.92,152.9,9.88590094]
[1750137848451,8.92,152.92,152.9,9.88590094]
[1750137848752,10.28970979,152.94,152.91,9.88590094]
[1750137848957,10.28970979,152.94,152.93,9.88590094]
[1750137849342,20.17561073,152.94,152.89,26.0]
[1750137849656,9.88590094,152.93,152.89,35.88590094]
[1750137849848,20.17561073,152.94,152.89,35.88590094]
[1750137850051,10.28970979,152.94,152.9,9.88590094]
[1750137850357,10.28970979,152.94,152.89,32.54053702]
[1750137850530,20.17561073,152.94,152.9,9.88590094]
[1750137850733,10.28970979,152.94,152.9,9.88590094]
[1750137850930,20.17561073,152.94,152.89,32.54053702]
[1750137851133,20.17561073,152.94,152.9,9.88590094]
[1750137851553,42.42970979,152.94,152.92,9.88590094]
[1750137852555,10.28970979,152.94,152.93,9.88590094]
[1750137853756,10.28970979,152.94,152.91,0.42648471]
[1750137853757,10.28970979,152.94,152.92,9.88590094]
[1750137853941,10.28970979,152.94,152.93,9.88590094]
[1750137854556,10.28970979,152.94,152.92,9.88590094]
[1750137854755,10.28970979,152.94,152.91,9.88590094]
[1750137855631,10.28970979,152.94,152.9,6.54010951]
[1750137855855,10.28970979,152.94,152.91,9.88590094]
[1750137856734,10.28970979,152.94,152.92,9.88590094]
[1750137856935,10.28970979,152.94,152.91,6.58616542]
[1750137857155,10.28970979,152.94,152.9,6.58616542]
[1750137857533,16.87587521,152.94,152.89,6.96709534]
[1750137857749,10.28970979,152.94,152.9,6.58616542]
[1750137858648,23.41443491,152.94,152.9,6.58616542]
[1750137859038,6.58616542,152.92,152.89,26.0]
[1750137859245,16.82826949,152.94,152.89,26.0]
[1750137859246,6.58616542,152.93,152.89,26.0]
[1750137859451,16.82826949,152.94,152.88,13.12693722]
[1750137859634,6.58616542,152.93,152.89,6.58616542]
[1750137859834,6.58616542,152.93,152.88,6.5407718]
[1750137860141,6.58616542,152.93,152.89,6.58616542]
[1750137860644,10.28970979,152.94,152.9,6.58616542]
[1750137860835,23.41444036,152.94,152.9,6.58616542]
[1750137861256,23.41444036,152.94,152.89,6.58616542]
[1750137861858,16.87587521,152.94,152.89,6.58616542]
[1750137862163,10.28970979,152.94,152.9,6.58616542]
[1750137862357,10.28970979,152.94,152.89,6.54054041]
[1750137862540,10.28970979,152.94,152.9,6.58616542]
[1750137862737,10.28970979,152.94,152.91,6.58616542]
[1750137862957,10.28970979,152.94,152.92,6.58616542]
[1750137864663,10.28970979,152.94,152.93,6.58616542]
[1750137865637,31.58,152.97,152.93,6.58616542]
[1750137865861,31.58,152.97,152.95,6.58616542]
[1750137866965,31.58,152.97,152.96,6.58616542]
[1750137867163,4.84762041,152.97,152.96,6.58616542]
[1750137867367,9.3,152.98,152.96,6.58616542]
[1750137867662,9.3,152.98,152.97,6.58616542]
[1750137867868,9.68435321,153.01,152.97,7.01265013]
[1750137868067,15.03150517,153.05,152.99,6.58616542]
[1750137868068,9.6832996,153.03,152.99,6.58616542]
[1750137868365,8.94,153.05,152.97,0.42648471]
[1750137868366,9.68686904,153.02,153.0,6.58616542]
[1750137868557,44.6405008,153.04,153.0,6.58616542]
[1750137868759,9.69589732,153.03,153.01,6.58616542]
[1750137869068,4.85488557,153.02,152.98,6.96321418]
[1750137869252,44.6004283,153.04,153.0,6.58616542]
[1750137869453,44.6004283,153.04,152.97,26.0]
[1750137869454,6.58616542,153.02,152.97,26.0]
[1750137869762,9.6997001,153.01,152.99,6.58616542]
[1750137870067,9.70045869,153.0,152.99,6.58616542]
[1750137870249,4.84999045,153.0,152.98,6.58616542]
[1750137870450,6.53516189,153.02,152.98,6.58616542]
[1750137870774,9.70517671,153.01,152.98,6.58616542]
[1750137871070,6.53516189,153.02,152.99,6.58616542]
[1750137871373,9.70964508,153.01,152.99,6.58616542]
[1750137871669,9.70964508,153.0,152.99,6.58616542]
[1750137871845,9.72188768,153.0,152.99,6.58616542]
[1750137873050,16.3080531,153.0,152.96,6.58616542]
[1750137873367,9.72188768,152.99,152.96,6.58616542]
[1750137873565,9.72188768,152.98,152.96,6.58616542]
[1750137873771,31.36,153.0,152.96,6.58616542]
[1750137873947,9.73535753,152.99,152.96,6.58616542]
[1750137874151,4.87369106,152.98,152.96,0.42648471]
[1750137874358,31.36,153.0,152.97,6.58616542]
[1750137874555,9.73736664,152.99,152.97,6.58616542]
[1750137874757,31.36,153.0,152.97,6.58616542]
[1750137874967,31.36,153.0,152.95,32.96419872]
[1750137874968,9.73584711,152.99,152.96,0.42648471]
[1750137875152,31.36,153.0,152.98,6.58616542]
[1750137875467,9.73550913,152.99,152.97,6.58616542]
[1750137875679,4.87198598,152.98,152.97,6.58616542]
[1750137875860,31.36,153.0,152.97,6.58616542]
[1750137876063,9.73550837,152.99,152.97,6.58616542]
[1750137876253,31.36,153.0,152.97,6.58616542]
[1750137876452,31.36,153.0,152.96,0.42648471]
[1750137876453,4.87208736,152.99,152.96,0.42648471]
[1750137876656,37.89594912,153.0,152.97,6.58616542]
[1750137876872,4.87628275,152.99,152.97,6.58616542]
[1750137877172,31.36,153.0,152.97,6.58616542]
[1750137877375,4.87628351,152.99,152.97,6.58616542]
[1750137877574,4.87628351,152.98,152.97,6.58616542]
[1750137877753,4.87628351,152.98,152.96,0.42648471]
[1750137877754,31.36,153.0,152.96,0.42648471]
[1750137878071,4.87525871,152.99,152.97,6.58616542]
[1750137878278,31.36,153.0,152.97,6.58616542]
[1750137878478,4.87525796,152.99,152.97,6.58616542]
[1750137878779,37.89602302,153.0,152.97,6.58616542]
[1750137878960,4.87525796,152.99,152.97,6.58616542]
[1750137879273,37.89602302,153.0,152.97,6.58616542]
[1750137879458,4.87525796,152.99,152.97,6.58616542]
[1750137879658,37.89602302,153.0,152.97,6.58616542]
[1750137879877,4.87587147,152.99,152.96,7.01265013]
[1750137880077,37.89602302,153.0,152.96,7.01265013]
[1750137880374,4.87588016,152.99,152.96,6.58616542]
[1750137880573,44.48218844,153.0,152.96,6.58616542]
[1750137880780,4.87588069,152.99,152.96,6.58616542]
[1750137880962,44.48218844,153.0,152.96,6.58616542]
[1750137881654,37.89602302,153.0,152.96,6.58616542]
[1750137882248,37.89602302,153.0,152.95,26.0]
[1750137882446,37.89602302,153.0,152.96,6.58616542]
[1750137882865,37.8701553,153.0,152.97,6.58616542]
[1750137883077,37.8701553,153.0,152.95,26.0]
[1750137883253,37.8701553,153.0,152.96,6.58616542]
[1750137883750,37.8701553,153.0,152.97,6.58616542]
[1750137885681,31.33413228,153.0,152.97,6.58616542]
[1750137885859,31.33413228,153.0,152.98,6.58616542]
[1750137886458,6.5351755,153.02,152.98,6.58616542]
[1750137886663,13.12040483,153.04,152.97,0.42648471]
[1750137886863,6.58616542,153.02,152.98,6.58616542]
[1750137887265,6.58616542,153.02,152.97,7.01265013]
[1750137887670,6.53552055,153.01,152.97,7.01265013]
[1750137887969,11.46055841,153.0,152.96,6.58616542]
[1750137888166,37.54616542,153.0,152.96,0.42648471]
[1750137888563,37.54616542,153.0,152.95,32.58616542]
[1750137888780,4.87488557,152.99,152.95,32.58616542]
[1750137888985,37.54616542,153.0,152.95,32.58616542]
[1750137889173,4.87494188,152.99,152.95,32.58616542]
[1750137889670,34.33849924,152.99,152.89,1.6224]
[1750137889867,6.58616542,152.96,152.91,6.58616542]
[1750137890065,30.86,152.95,152.91,6.58616542]
[1750137890265,30.86,152.95,152.92,6.58616542]
[1750137890458,30.86,152.95,152.91,6.58616542]
[1750137890654,6.58616542,152.94,152.89,8.20856542]
[1750137890859,37.44616542,152.95,152.9,6.58616542]
[1750137891458,30.86,152.95,152.91,6.58616542]
[1750137891873,37.39842124,152.95,152.91,6.58616542]
[1750137892087,30.86,152.95,152.92,6.58616542]
[1750137892264,37.39810374,152.95,152.92,6.58616542]
[1750137892771,30.86,152.95,152.92,6.58616542]
[1750137892965,30.86,152.95,152.91,0.42648471]
[1750137893287,30.86,152.95,152.91,7.01265013]
[1750137893684,30.86,152.95,152.91,0.42648471]
[1750137893685,37.39822549,152.95,152.91,0.42648471]
[1750137893855,37.39822549,152.95,152.91,7.01265013]
[1750137894059,43.98439091,152.95,152.91,7.01265013]
[1750137894778,43.98439091,152.95,152.9,18.64964886]
[1750137894779,43.98439091,152.95,152.9,6.58616542]
[1750137894988,6.58616542,152.93,152.9,0.42648471]
[1750137895199,37.39822549,152.95,152.9,7.01265013]
[1750137895376,6.58616542,152.94,152.9,0.42648471]
[1750137895571,6.58616542,152.94,152.9,7.01265013]
[1750137895774,6.58616542,152.94,152.9,0.42648471]
[1750137895977,6.5386867,152.94,152.9,7.01265013]
[1750137896502,13.12485212,152.94,152.9,6.58616542]
[1750137896667,6.58616542,152.93,152.89,8.20856542]
[1750137897499,6.58616542,152.93,152.89,6.58616542]
[1750137898103,43.7855324,152.92,152.88,6.58616542]
[1750137898320,43.7855324,152.92,152.88,0.42648471]
[1750137898590,43.7855324,152.92,152.88,7.01265013]
[1750137899290,43.7855324,152.92,152.88,0.42648471]
[1750137899494,37.19936698,152.92,152.88,0.42648471]
[1750137899709,30.66,152.92,152.9,6.58616542]
[1750137900583,30.66,152.92,152.89,6.58616542]
[1750137901002,1.5714,152.99,152.91,7.01265013]
[1750137901212,11.41506843,152.98,152.91,19.07613357]
[1750137901380,6.58616542,152.94,152.9,6.1222]
[1750137901692,30.7,152.95,152.92,6.58616542]
[1750137901887,30.7,152.95,152.91,7.01265013]
[1750137902091,43.82459423,152.95,152.91,0.42648471]
[1750137902305,43.82459423,152.95,152.91,7.01265013]
[1750137902487,6.58616542,152.94,152.9,0.42648471]
[1750137902900,6.58616542,152.94,152.9,7.01265013]
[1750137903610,37.23842881,152.95,152.9,7.01265013]
[1750137903611,30.7,152.95,152.92,6.58616542]
[1750137903986,16.34200549,152.98,152.94,6.58616542]
[1750137903987,30.64,152.98,152.94,6.58616542]
[1750137904189,4.87776718,152.97,152.93,6.58616542]
[1750137904393,1.577,153.04,152.97,18.64964886]
[1750137904613,9.8090377,153.06,153.03,6.58616542]
[1750137904923,4.87548676,153.05,153.03,6.58616542]
[1750137905091,9.8090377,153.06,153.03,6.58616542]
[1750137905835,9.8090377,153.06,153.0,0.14216157]
[1750137905836,40.4090377,153.06,153.02,6.58616542]
[1750137906001,46.9424804,153.06,153.02,6.58616542]
[1750137906184,46.99520312,153.06,153.01,6.58616542]
[1750137906506,53.52878098,153.06,153.01,6.58616542]
[1750137906889,9.86660033,153.05,153.01,9.86660033]
[1750137907211,14.73846537,153.04,153.0,9.86660033]
[1750137907505,46.94261556,153.06,153.0,9.86660033]
[1750137907506,14.73840344,153.05,153.0,9.86660033]
[1750137907710,4.87180311,153.05,153.01,9.86660033]
[1750137908211,56.80921589,153.06,153.01,9.86660033]
[1750137908512,30.52,153.05,153.01,9.86660033]
[1750137908803,40.38660033,153.05,153.0,9.86660033]
[1750137909004,30.52,153.05,153.0,9.86660033]
[1750137909399,4.86977274,153.04,153.0,9.86660033]
[1750137909714,40.38660033,153.05,153.01,9.86660033]
[1750137910086,46.92054118,153.05,153.01,9.86660033]
[1750137910309,4.8699204,153.04,153.01,9.86660033]
[1750137910490,46.92054118,153.05,153.01,9.86660033]
[1750137911892,46.92054118,153.05,153.0,9.86660033]
[1750137912404,46.92054118,153.05,152.99,0.42648471]
[1750137912612,9.8090377,153.06,153.04,9.86660033]
[1750137912910,8.22,153.13,153.08,26.0]
[1750137913112,3.40564774,153.17,153.08,26.0]
[1750137913412,18.12024356,153.19,153.08,26.0]
[1750137913413,27.98684389,153.19,153.12,26.0]
[1750137913593,27.98684389,153.19,153.11,6.0243]
[1750137913594,48.52024356,153.19,153.11,6.0243]
[1750137913797,9.86660033,153.18,153.11,6.0243]
[1750137914109,9.86660033,153.15,153.09,0.28432314]
[1750137914407,30.4,153.14,153.11,9.86660033]
[1750137914607,30.38,153.14,153.12,9.86660033]
[1750137914910,30.38,153.14,153.08,0.14216157]
[1750137914911,30.38,153.14,153.13,9.86660033]
[1750137915205,30.36,153.15,153.13,9.86660033]
[1750137916493,24.64811522,153.19,153.14,9.86660033]
[1750137916804,30.3,153.18,153.14,9.86660033]
[1750137917112,30.3,153.17,153.14,9.86660033]
[1750137918019,30.3,153.17,153.12,6.53071475]
[1750137918193,30.26,153.17,153.13,9.86660033]
[1750137918603,9.86660033,153.16,153.11,35.86660033]
[1750137918911,40.12660033,153.17,153.12,9.86660033]
[1750137919585,6.52911987,153.16,153.12,9.86660033]
[1750137920014,16.3957202,153.16,153.12,9.86660033]
[1750137920213,16.3957202,153.16,153.11,9.86660033]
[1750137920395,16.3957202,153.16,153.09,0.28432314]
[1750137920396,9.86660033,153.14,153.08,26.0]
[1750137920602,30.18,153.13,153.1,9.86660033]
[1750137920919,30.18,153.13,153.07,6.0528]
[1750137920920,30.18,153.13,153.09,9.86660033]
[1750137921219,30.18,153.13,153.07,6.19496157]
[1750137921220,30.18,153.13,153.1,9.86660033]
[1750137922992,16.39625191,153.15,153.1,9.86660033]
[1750137923199,30.14,153.14,153.1,9.86660033]
[1750137923517,40.00660033,153.14,153.1,9.86660033]
[1750137924815,46.5366343,153.14,153.1,9.86660033]
[1750137925298,9.86660033,153.13,153.09,9.86660033]
[1750137925619,36.67003397,153.14,153.1,9.86660033]
[1750137925620,46.5366343,153.14,153.1,9.86660033]
[1750137926726,40.00660033,153.14,153.09,6.53209222]
[1750137926891,46.53658039,153.14,153.09,6.53209222]
[1750137927091,46.53658039,153.14,153.1,9.86660033]
[1750137927512,46.53658039,153.14,153.09,9.86660033]
[1750137928345,9.86660033,153.13,153.09,9.86660033]
[1750137929394,16.39705689,153.13,153.09,9.86660033]
[1750137929590,6.53045656,153.13,153.08,9.86660033]
[1750137929815,9.86660033,153.12,153.08,9.86660033]
[1750137930003,16.39705689,153.13,153.09,9.86660033]
[1750137930205,29.9,153.12,153.09,9.86660033]
[1750137930626,29.9,153.12,153.1,9.86660033]
[1750137930802,29.9,153.12,153.1,6.57065693]
[1750137931421,29.9,153.12,153.09,6.57065693]
[1750137932136,29.9,153.12,153.09,13.10270288]
[1750137933002,13.10066369,153.14,153.09,13.10270288]
[1750137933003,29.8,153.13,153.1,6.57065693]
[1750137933240,6.57065693,153.14,153.1,6.57065693]
[1750137933241,29.8,153.14,153.12,6.57065693]
[1750137933404,29.78,153.15,153.12,6.57065693]
[1750137934116,39.09907379,153.18,153.13,6.57065693]
[1750137934628,29.76,153.17,153.13,6.57065693]
[1750137934804,29.76,153.17,153.14,6.57065693]
[1750137937022,29.76,153.17,153.14,13.1005594]
[1750137937430,29.76,153.17,153.14,6.57065693]
[1750137937930,29.66,153.18,153.16,6.57065693]
[1750137938130,8.22,153.19,153.17,6.57065693]
[1750137938514,8.22,153.19,153.18,6.57065693]
[1750137939649,8.22,153.19,153.17,6.57065693]
[1750137940230,8.22,153.19,153.16,6.57065693]
[1750137942544,21.31857638,153.19,153.15,6.604]
[1750137942726,6.57065693,153.17,153.13,6.85498007]
[1750137942927,36.09065693,153.17,153.13,13.10099789]
[1750137943401,36.09065693,153.17,153.13,0.14216157]
[1750137943654,29.52,153.17,153.14,6.57065693]
[1750137943853,29.52,153.17,153.13,0.42648471]
[1750137944154,36.09065693,153.17,153.13,6.99714164]
[1750137944753,29.52,153.17,153.13,6.99714164]
[1750137945532,29.52,153.17,153.14,6.57065693]
[1750137946840,36.09065693,153.17,153.13,0.42648471]
[1750137947039,36.09065693,153.17,153.13,6.57065693]
[1750137947279,29.52,153.17,153.14,6.57065693]
[1750137947666,36.09065693,153.17,153.13,6.57065693]
[1750137948289,29.52,153.17,153.13,6.57065693]
[1750137950362,36.0487252,153.17,153.13,6.57065693]
[1750137951089,42.61938213,153.17,153.13,6.57065693]
[1750137952286,13.09980705,153.16,153.11,26.14216157]
[1750137952588,6.57065693,153.14,153.11,26.0]
[1750137952793,35.91065693,153.14,153.1,0.28432314]
[1750137953085,35.91065693,153.14,153.1,0.42648471]
[1750137953593,35.91065693,153.14,153.1,6.57065693]
[1750137954166,35.91065693,153.14,153.09,13.10275478]
[1750137954777,35.91065693,153.14,153.1,6.57065693]
[1750137954976,42.44068942,153.14,153.1,6.57065693]
[1750137955188,35.91065693,153.14,153.1,6.57065693]
[1750137956384,29.3,153.16,153.13,6.57065693]
[1750137957090,29.3,153.16,153.12,6.57065693]
[1750137957479,35.82917535,153.16,153.12,6.57065693]
[1750137957892,6.57065693,153.16,153.12,6.57065693]
[1750137958494,35.81065693,153.16,153.12,6.57065693]
[1750137958876,29.24,153.16,153.12,6.57065693]
[1750137959196,29.24,153.16,153.12,13.10143623]
[1750137959693,6.57065693,153.18,153.14,6.57065693]
[1750137959997,29.2,153.17,153.14,6.57065693]
[1750137961708,29.2,153.17,153.13,13.24315676]
[1750137961885,35.77065693,153.17,153.13,6.7128185]
[1750137962198,42.29951565,153.17,153.13,6.7128185]
[1750137963095,6.57065693,153.16,153.0,46.89255656]
[1750137963307,6.57065693,153.12,153.08,1.6472]
[1750137963474,6.57065693,153.12,153.07,19.10396419]
[1750137963671,29.1,153.13,153.05,3.20747179]
[1750137963883,6.57065693,153.09,153.04,14.65812144]
[1750137964190,6.57065693,153.09,153.05,6.57065693]
[1750137964397,35.67065693,153.1,153.05,6.57065693]
[1750137964982,29.1,153.1,153.06,6.57065693]
[1750137965978,35.67065693,153.1,153.06,6.57065693]
[1750137967198,29.08,153.12,153.08,6.57065693]
[1750137967400,29.08,153.12,153.09,6.57065693]
[1750137967893,29.08,153.12,153.07,0.14216157]
[1750137968102,35.65065693,153.12,153.08,6.57065693]
[1750137969488,35.65065693,153.12,153.08,13.10308212]
[1750137969682,29.08,153.12,153.09,6.57065693]
[1750137969882,28.98,153.13,153.1,6.57065693]
[1750137970083,28.98,153.13,153.11,6.57065693]
[1750137970487,28.98,153.13,153.09,19.07613357]
[1750137970679,28.98,153.13,153.11,6.57065693]
[1750137970877,7.16,153.14,153.11,6.57065693]
[1750137971207,7.16,153.14,153.12,6.57065693]
[1750137972275,7.16,153.14,153.11,6.57065693]
[1750137975294,36.06,153.14,153.1,6.5315525]
[1750137975493,36.06,153.14,153.11,6.57065693]
[1750137976511,28.9,153.14,153.11,6.57065693]
[1750137976706,13.10026226,153.15,153.11,6.57065693]
[1750137976891,41.94026226,153.15,153.11,6.57065693]
[1750137977084,41.94026226,153.15,153.1,6.5315525]
[1750137977085,6.57065693,153.13,153.09,0.42648471]
[1750137977497,6.57065693,153.12,153.09,0.42648471]
[1750137977806,6.53052699,153.13,153.08,6.85498007]
[1750137978010,6.57065693,153.11,153.07,26.0]
[1750137978505,6.57065693,153.11,153.06,13.24614649]
[1750137978506,6.57065693,153.1,153.06,13.10398492]
[1750137978803,6.57065693,153.11,153.06,13.10398492]
[1750137979008,6.57065693,153.11,153.07,6.57065693]
[1750137980212,6.57065693,153.1,153.06,6.57065693]
[1750137980712,6.57065693,153.11,153.06,6.57065693]
[1750137980939,28.82,153.12,153.09,6.57065693]
[1750137981417,6.57065693,153.13,153.09,6.57065693]
[1750137981711,28.78,153.12,153.09,6.57065693]
[1750137982102,35.35065693,153.12,153.08,13.10290787]
[1750137982918,28.78,153.12,153.09,6.57065693]
[1750137983126,28.76,153.13,153.09,6.57065693]
[1750137984316,35.33065693,153.13,153.09,6.57065693]
[1750137984690,6.57065693,153.13,153.09,13.10273802]
[1750137984895,6.57065693,153.13,153.07,0.14216157]
[1750137984896,6.57065693,153.12,153.07,0.14216157]
[1750137985099,6.57065693,153.1,153.06,6.67526022]
[1750137985293,6.57065693,153.1,153.06,13.24591715]
[1750137985493,35.29065693,153.1,153.06,13.10375558]
[1750137986932,41.82235987,153.1,153.05,42.51686705]
[1750137987432,6.57065693,153.09,153.05,29.41242156]
[1750137987899,41.82235987,153.1,153.05,42.51684754]
[1750137988102,6.57065693,153.09,153.05,42.51684754]
[1750137990629,6.57065693,153.09,153.05,35.98307849]
[1750137991015,6.57065693,153.09,153.05,42.51688004]
[1750137993703,35.29065693,153.1,153.06,6.57065693]
[1750137994205,28.72,153.1,153.06,6.57065693]
[1750137994401,28.72,153.1,153.07,6.57065693]
[1750137996632,6.57065693,153.11,153.07,13.10346426]
[1750137996926,28.52,153.12,153.09,6.57065693]
[1750137997523,6.57065693,153.14,153.09,6.57065693]
[1750137997733,6.57065693,153.15,153.11,6.57065693]
[1750137997922,28.5,153.13,153.11,6.57065693]
[1750137998232,14.68846227,153.16,153.11,6.57065693]
[1750137998424,18.60859526,153.17,153.12,6.57065693]
[1750137998614,28.5,153.16,153.12,13.10143277]
[1750137999040,13.73065693,153.17,153.12,13.10143277]
[1750137999214,28.48,153.16,153.12,13.10143277]
[1750137999530,28.48,153.16,153.13,6.57065693]
[1750138000338,13.73065693,153.17,153.13,6.57065693]
[1750138000538,28.48,153.16,153.13,6.57065693]
[1750138000743,28.48,153.16,153.12,13.10143277]
[1750138002035,28.46,153.16,153.13,13.1010558]
[1750138002535,7.16,153.17,153.13,13.1010558]
[1750138002717,35.6,153.17,153.13,13.1010558]
[1750138002910,35.6,153.17,153.13,6.57065693]
[1750138003337,7.16,153.17,153.13,6.57065693]
[1750138003640,35.58,153.17,153.13,6.57065693]
[1750138003935,48.679419,153.17,153.13,6.57065693]
[1750138004347,42.10876207,153.17,153.12,6.53069676]
[1750138004527,35.58,153.17,153.13,6.57065693]
[1750138004837,7.16,153.17,153.13,6.57065693]
[1750138005041,35.54,153.17,153.13,6.57065693]
[1750138005222,7.16,153.17,153.14,6.57065693]
[1750138005551,35.54,153.17,153.14,6.57065693]
[1750138006615,7.16,153.17,153.14,6.57065693]
[1750138006859,35.52,153.17,153.14,6.57065693]
[1750138007442,7.16,153.17,153.14,6.57065693]
[1750138007628,35.5,153.17,153.14,6.57065693]
[1750138008630,7.16,153.17,153.14,6.57065693]
[1750138008944,35.48,153.17,153.14,6.57065693]
[1750138009118,35.48,153.17,153.14,13.10056046]
[1750138009713,35.48,153.17,153.14,6.57065693]
[1750138011042,35.48,153.17,153.14,13.10056447]
[1750138011219,7.16,153.17,153.16,6.57065693]
[1750138011412,13.09723675,153.22,153.17,0.28432314]
[1750138011634,28.3,153.21,153.18,6.57065693]
[1750138012029,6.82,153.23,153.2,6.57065693]
[1750138012221,6.82,153.23,153.21,6.57065693]
[1750138012816,13.39065693,153.23,153.19,0.14216157]
[1750138013044,19.91682118,153.23,153.18,13.38317006]
[1750138013353,6.57065693,153.21,153.16,8.13555693]
[1750138013515,13.34616425,153.23,153.15,18.64964886]